[Event "Titled Tuesday Blitz June 13 Late 2023"]
[White "Badelka, Olga"]
[Black "Nakamura, Hikaru"]
[WhiteFideId "13509926"]
[BlackFideId "2016192"]
[WhiteElo "2375"]
[BlackElo "2874"]
[Result "0-1"]
[Round "1"]
[TimeControl "180+2"]
[Date "2023.06.13"]
[WhiteClock "0:00:00"]
[BlackClock "0:01:48"]
[Board "1"]

1. c4 {[%clk 0:02:57]}  g6 {[%clk 0:02:59]} 2. Nc3 {[%clk 0:02:54]}  Bg7 {[%clk 0:03:00]} 3. d4 {[%clk 0:02:54]}  c5 {[%clk 0:02:59]} 4. d5 {[%clk 0:02:48]}  Bxc3+ {[%clk 0:02:57]} 5. bxc3 {[%clk 0:02:45]}  f5 {[%clk 0:02:57]} 6. Nf3 {[%clk 0:02:31]}  Qa5 {[%clk 0:02:55]} 7. Qc2 {[%clk 0:02:27]}  Nf6 {[%clk 0:02:54]} 8. Bf4 {[%clk 0:02:14]}  d6 {[%clk 0:02:55]} 9. h4 {[%clk 0:02:11]}  Nbd7 {[%clk 0:02:54]} 10. e3 {[%clk 0:02:05]}  Ne4 {[%clk 0:02:52]} 11. Rc1 {[%clk 0:02:04]}  Ndf6 {[%clk 0:02:52]} 12. Bd3 {[%clk 0:02:03]}  Bd7 {[%clk 0:02:51]} 13. Ng5 {[%clk 0:01:59]}  Ba4 {[%clk 0:02:44]} 14. Qb2 {[%clk 0:01:59]}  O-O-O {[%clk 0:02:44]} 15. Ne6 {[%clk 0:01:54]}  Ng4 {[%clk 0:02:38]} 16. f3 {[%clk 0:01:48]}  Nef2 {[%clk 0:02:27]} 17. Ke2 {[%clk 0:01:46]}  Nxd3 {[%clk 0:02:27]} 18. Kxd3 {[%clk 0:01:43]}  Nf6 {[%clk 0:02:27]} 19. Nxd8 {[%clk 0:01:37]}  Rxd8 {[%clk 0:02:27]} 20. Bg5 {[%clk 0:01:36]}  Nd7 {[%clk 0:02:27]} 21. f4 {[%clk 0:01:23]}  Re8 {[%clk 0:02:26]} 22. h5 {[%clk 0:01:20]}  Nb6 {[%clk 0:02:26]} 23. hxg6 {[%clk 0:01:19]}  Nxc4 {[%clk 0:02:25]} 24. Qf2 {[%clk 0:01:05]}  hxg6 {[%clk 0:02:21]} 25. Ke2 {[%clk 0:01:00]}  e6 {[%clk 0:02:13]} 26. dxe6 {[%clk 0:00:54]}  Rxe6 {[%clk 0:02:13]} 27. Rh8+ {[%clk 0:00:54]}  Be8 {[%clk 0:02:13]} 28. Kf1 {[%clk 0:00:47]}  Qa3 {[%clk 0:02:09]} 29. Re1 {[%clk 0:00:15]}  Qxc3 {[%clk 0:02:09]} 30. Rh3 {[%clk 0:00:16]}  Nd2+ {[%clk 0:02:08]} 31. Kg1 {[%clk 0:00:16]}  Ne4 {[%clk 0:02:09]} 32. Qh4 {[%clk 0:00:15]}  Kc7 {[%clk 0:02:02]} 33. Rb1 {[%clk 0:00:10]}  Qg7 {[%clk 0:01:48]} 34. Qh7 {[%clk 0:00:08]}  Qxh7 {[%clk 0:01:49]} 35. Rxh7+ {[%clk 0:00:08]}  Bd7 {[%clk 0:01:50]} 36. Be7 {[%clk 0:00:03]}  b5 {[%clk 0:01:48]} 37. Bf8 {[%clk 0:00:03]}  Nc3 {[%clk 0:01:48]} 38. Rc1 {[%clk 0:00:00]}  Ne2+ {[%clk 0:01:48]} 0-1


[Site "https://www.chess.com"]

[Event "Titled Tuesday Blitz June 13 Late 2023"]
[White "Nihal Sarin"]
[Black "Martins, Vinicius Tine"]
[WhiteFideId "25092340"]
[BlackFideId "2112884"]
[WhiteElo "2689"]
[BlackElo "2373"]
[Result "1-0"]
[Round "1"]
[TimeControl "180+2"]
[Date "2023.06.13"]
[WhiteClock "0:00:12"]
[BlackClock "0:00:00"]
[Board "2"]

1. f4 {[%clk 0:02:55]}  d5 {[%clk 0:02:57]} 2. Nf3 {[%clk 0:02:55]}  g6 {[%clk 0:02:52]} 3. g3 {[%clk 0:02:54]}  Nh6 {[%clk 0:02:49]} 4. Bg2 {[%clk 0:02:54]}  Nf5 {[%clk 0:02:48]} 5. c3 {[%clk 0:02:51]}  c5 {[%clk 0:02:40]} 6. d3 {[%clk 0:02:51]}  d4 {[%clk 0:02:39]} 7. Na3 {[%clk 0:02:51]}  Nc6 {[%clk 0:02:36]} 8. Nc4 {[%clk 0:02:45]}  h5 {[%clk 0:02:31]} 9. e4 {[%clk 0:02:43]}  dxe3 {[%clk 0:02:26]} 10. Nxe3 {[%clk 0:02:44]}  Bg7 {[%clk 0:02:22]} 11. O-O {[%clk 0:02:44]}  h4 {[%clk 0:02:02]} 12. Nxf5 {[%clk 0:02:31]}  Bxf5 {[%clk 0:02:00]} 13. Nxh4 {[%clk 0:02:32]}  Bxd3 {[%clk 0:01:59]} 14. Rf2 {[%clk 0:02:32]}  c4 {[%clk 0:01:54]} 15. Be3 {[%clk 0:02:32]}  Qd7 {[%clk 0:01:52]} 16. Qa4 {[%clk 0:02:06]}  O-O {[%clk 0:01:32]} 17. Re1 {[%clk 0:02:03]}  e6 {[%clk 0:01:30]} 18. Nf3 {[%clk 0:02:01]}  a6 {[%clk 0:01:27]} 19. Ng5 {[%clk 0:01:57]}  b5 {[%clk 0:01:26]} 20. Qd1 {[%clk 0:01:57]}  Ne7 {[%clk 0:01:21]} 21. Bxa8 {[%clk 0:01:46]}  Rxa8 {[%clk 0:01:20]} 22. Qf3 {[%clk 0:01:47]}  Rd8 {[%clk 0:01:18]} 23. g4 {[%clk 0:01:47]}  Nd5 {[%clk 0:01:09]} 24. Qh3 {[%clk 0:01:43]}  Nxe3 {[%clk 0:00:59]} 25. Qxe3 {[%clk 0:01:36]}  a5 {[%clk 0:00:56]} 26. Nf3 {[%clk 0:01:20]}  b4 {[%clk 0:00:50]} 27. Ne5 {[%clk 0:01:20]}  Qb7 {[%clk 0:00:46]} 28. h4 {[%clk 0:01:13]}  bxc3 {[%clk 0:00:42]} 29. bxc3 {[%clk 0:01:14]}  Qd5 {[%clk 0:00:35]} 30. Qa7 {[%clk 0:01:01]}  Bxe5 {[%clk 0:00:27]} 31. Rxe5 {[%clk 0:01:02]}  Qd6 {[%clk 0:00:24]} 32. Qe3 {[%clk 0:00:59]}  Rb8 {[%clk 0:00:23]} 33. h5 {[%clk 0:00:43]}  Rb1+ {[%clk 0:00:22]} 34. Kh2 {[%clk 0:00:44]}  Qc6 {[%clk 0:00:22]} 35. Qf3 {[%clk 0:00:44]}  Qxf3 {[%clk 0:00:19]} 36. Rxf3 {[%clk 0:00:45]}  gxh5 {[%clk 0:00:19]} 37. Rxh5 {[%clk 0:00:35]}  Rb2+ {[%clk 0:00:19]} 38. Kg3 {[%clk 0:00:36]}  Rxa2 {[%clk 0:00:19]} 39. f5 {[%clk 0:00:35]}  exf5 {[%clk 0:00:18]} 40. gxf5 {[%clk 0:00:36]}  f6 {[%clk 0:00:17]} 41. Kf4 {[%clk 0:00:31]}  Rg2 {[%clk 0:00:14]} 42. Rfh3 {[%clk 0:00:18]}  Kf7 {[%clk 0:00:13]} 43. Rh7+ {[%clk 0:00:17]}  Rg7 {[%clk 0:00:13]} 44. Rxg7+ {[%clk 0:00:12]}  Kxg7 {[%clk 0:00:00]} 45. Rh2 {[%clk 0:00:12]} 1-0


[Site "https://www.chess.com"]

[Event "Titled Tuesday Blitz June 13 Late 2023"]
[White "Berezin, Viktor"]
[Black "Firouzja, Alireza"]
[WhiteFideId "14107872"]
[BlackFideId "12573981"]
[WhiteElo "2310"]
[BlackElo "2896"]
[Result "0-1"]
[Round "1"]
[TimeControl "180+2"]
[Date "2023.06.13"]
[WhiteClock "0:00:13"]
[BlackClock "0:00:09"]
[Board "7"]

1. d4 {[%clk 0:02:56]}  Nf6 {[%clk 0:02:59]} 2. Nf3 {[%clk 0:02:56]}  g6 {[%clk 0:02:58]} 3. g3 {[%clk 0:02:57]}  Bg7 {[%clk 0:02:58]} 4. Bg2 {[%clk 0:02:57]}  O-O {[%clk 0:02:59]} 5. O-O {[%clk 0:02:58]}  d6 {[%clk 0:02:59]} 6. a4 {[%clk 0:02:58]}  Nbd7 {[%clk 0:02:57]} 7. Nc3 {[%clk 0:02:57]}  c6 {[%clk 0:02:55]} 8. a5 {[%clk 0:02:56]}  Rb8 {[%clk 0:02:53]} 9. e4 {[%clk 0:02:55]}  e5 {[%clk 0:02:52]} 10. h3 {[%clk 0:02:55]}  Re8 {[%clk 0:02:51]} 11. dxe5 {[%clk 0:02:50]}  dxe5 {[%clk 0:02:50]} 12. Be3 {[%clk 0:02:50]}  Ra8 {[%clk 0:02:45]} 13. Nd2 {[%clk 0:02:32]}  b5 {[%clk 0:02:23]} 14. axb6 {[%clk 0:02:29]}  Nxb6 {[%clk 0:02:23]} 15. Na4 {[%clk 0:02:17]}  Rb8 {[%clk 0:02:03]} 16. Nc5 {[%clk 0:02:13]}  Qe7 {[%clk 0:02:00]} 17. Qe2 {[%clk 0:02:01]}  Nh5 {[%clk 0:01:56]} 18. Na6 {[%clk 0:01:43]}  Rb7 {[%clk 0:01:52]} 19. Nc5 {[%clk 0:01:41]}  Rc7 {[%clk 0:01:52]} 20. Na6 {[%clk 0:01:41]}  Rd7 {[%clk 0:01:52]} 21. Nb8 {[%clk 0:01:33]}  Rd6 {[%clk 0:01:45]} 22. Na6 {[%clk 0:01:17]}  Rdd8 {[%clk 0:01:39]} 23. Nc4 {[%clk 0:01:07]}  Nxc4 {[%clk 0:01:14]} 24. Qxc4 {[%clk 0:01:08]}  g5 {[%clk 0:00:56]} 25. Qc5 {[%clk 0:00:58]}  Qf6 {[%clk 0:00:45]} 26. Nc7 {[%clk 0:00:56]}  Re7 {[%clk 0:00:45]} 27. Rxa7 {[%clk 0:00:56]}  Bf8 {[%clk 0:00:40]} 28. Qb6 {[%clk 0:00:55]}  Red7 {[%clk 0:00:24]} 29. Na6 {[%clk 0:00:34]}  Rxa7 {[%clk 0:00:23]} 30. Qxa7 {[%clk 0:00:34]}  Nf4 {[%clk 0:00:22]} 31. Bxf4 {[%clk 0:00:24]}  gxf4 {[%clk 0:00:23]} 32. Nc5 {[%clk 0:00:19]}  f3 {[%clk 0:00:21]} 33. Bh1 {[%clk 0:00:19]}  Bxh3 {[%clk 0:00:21]} 34. Re1 {[%clk 0:00:19]}  Rd2 {[%clk 0:00:16]} 35. Nd3 {[%clk 0:00:19]}  Rxc2 {[%clk 0:00:15]} 36. Qe3 {[%clk 0:00:19]}  Bg4 {[%clk 0:00:16]} 37. Rc1 {[%clk 0:00:18]}  Re2 {[%clk 0:00:16]} 38. Qb6 {[%clk 0:00:16]}  Qd6 {[%clk 0:00:15]} 39. Qb3 {[%clk 0:00:15]}  Qd4 {[%clk 0:00:15]} 40. Rf1 {[%clk 0:00:14]}  Be6 {[%clk 0:00:13]} 41. Qc3 {[%clk 0:00:12]}  Qxc3 {[%clk 0:00:08]} 42. bxc3 {[%clk 0:00:13]}  Bd6 {[%clk 0:00:04]} 43. Bxf3 {[%clk 0:00:13]}  Rc2 {[%clk 0:00:04]} 44. Rc1 {[%clk 0:00:12]}  Ra2 {[%clk 0:00:05]} 45. Kf1 {[%clk 0:00:12]}  Bc4 {[%clk 0:00:05]} 46. Be2 {[%clk 0:00:12]}  Rd2 {[%clk 0:00:04]} 47. Ke1 {[%clk 0:00:12]}  Ra2 {[%clk 0:00:03]} 48. Rd1 {[%clk 0:00:12]}  Rc2 {[%clk 0:00:02]} 49. Nc1 {[%clk 0:00:12]}  Bxe2 {[%clk 0:00:03]} 50. Nxe2 {[%clk 0:00:13]}  Bc5 {[%clk 0:00:03]} 51. Rd2 {[%clk 0:00:13]}  Bxf2+ {[%clk 0:00:04]} 52. Kd1 {[%clk 0:00:13]}  Rxd2+ {[%clk 0:00:04]} 53. Kxd2 {[%clk 0:00:14]}  Kg7 {[%clk 0:00:05]} 54. Kd3 {[%clk 0:00:14]}  Kg6 {[%clk 0:00:05]} 55. Kd2 {[%clk 0:00:13]}  Kg5 {[%clk 0:00:06]} 56. Kd3 {[%clk 0:00:13]}  Kg4 {[%clk 0:00:06]} 57. Kc4 {[%clk 0:00:13]}  h5 {[%clk 0:00:07]} 58. Kb4 {[%clk 0:00:12]}  Bxg3 {[%clk 0:00:07]} 59. Kc5 {[%clk 0:00:12]}  h4 {[%clk 0:00:07]} 60. Kxc6 {[%clk 0:00:12]}  h3 {[%clk 0:00:08]} 61. Kd5 {[%clk 0:00:13]}  h2 {[%clk 0:00:08]} 62. c4 {[%clk 0:00:14]}  h1=Q {[%clk 0:00:09]} 63. c5 {[%clk 0:00:13]}  Qd1+ {[%clk 0:00:09]} 0-1


[Site "https://www.chess.com"]

[Event "Titled Tuesday Blitz June 13 Late 2023"]
[White "Andreikin, Dmitry"]
[Black "Kirillov, Dmitry"]
[WhiteFideId "4158814"]
[BlackFideId "34180572"]
[WhiteElo "2736"]
[BlackElo "2161"]
[Result "1-0"]
[Round "1"]
[TimeControl "180+2"]
[Date "2023.06.13"]
[WhiteClock "0:01:53"]
[BlackClock "0:01:48"]
[Board "8"]

1. c4 {[%clk 0:02:59]}  e6 {[%clk 0:02:59]} 2. Nc3 {[%clk 0:02:59]}  d5 {[%clk 0:03:00]} 3. d4 {[%clk 0:02:59]}  c6 {[%clk 0:03:00]} 4. e4 {[%clk 0:02:57]}  Bb4 {[%clk 0:03:00]} 5. e5 {[%clk 0:02:54]}  c5 {[%clk 0:02:59]} 6. Nf3 {[%clk 0:02:52]}  Ne7 {[%clk 0:02:59]} 7. a3 {[%clk 0:02:45]}  Bxc3+ {[%clk 0:02:58]} 8. bxc3 {[%clk 0:02:46]}  cxd4 {[%clk 0:02:59]} 9. cxd4 {[%clk 0:02:44]}  Nbc6 {[%clk 0:03:00]} 10. h4 {[%clk 0:02:28]}  h6 {[%clk 0:02:58]} 11. Rb1 {[%clk 0:02:23]}  b6 {[%clk 0:02:58]} 12. cxd5 {[%clk 0:02:22]}  Nxd5 {[%clk 0:02:58]} 13. Bb5 {[%clk 0:02:22]}  Bd7 {[%clk 0:02:57]} 14. O-O {[%clk 0:02:21]}  O-O {[%clk 0:02:57]} 15. Bd2 {[%clk 0:02:07]}  Rc8 {[%clk 0:02:56]} 16. Qe2 {[%clk 0:02:07]}  Qe7 {[%clk 0:02:47]} 17. Rfc1 {[%clk 0:02:05]}  Qxa3 {[%clk 0:02:41]} 18. Qe4 {[%clk 0:02:05]}  Qe7 {[%clk 0:02:12]} 19. Bd3 {[%clk 0:02:02]}  f5 {[%clk 0:02:12]} 20. exf6 {[%clk 0:02:03]}  Nxf6 {[%clk 0:02:13]} 21. Qe2 {[%clk 0:02:01]}  Qd6 {[%clk 0:02:09]} 22. Rc4 {[%clk 0:01:55]}  Ne7 {[%clk 0:01:48]} 23. Bb4 {[%clk 0:01:53]} 1-0


[Site "https://www.chess.com"]

[Event "Titled Tuesday Blitz June 13 Late 2023"]
[White "Martinez Alcantara, Jose Eduardo"]
[Black "Shapiro, Viktor"]
[WhiteFideId "3805662"]
[BlackFideId "4175700"]
[WhiteElo "2711"]
[BlackElo "2212"]
[Result "1-0"]
[Round "1"]
[TimeControl "180+2"]
[Date "2023.06.13"]
[WhiteClock "0:02:01"]
[BlackClock "0:00:29"]
[Board "10"]

1. e4 {[%clk 0:03:00]}  Nf6 {[%clk 0:03:00]} 2. e5 {[%clk 0:03:00]}  Nd5 {[%clk 0:03:00]} 3. Nc3 {[%clk 0:03:01]}  Nb6 {[%clk 0:03:00]} 4. d4 {[%clk 0:03:00]}  d6 {[%clk 0:03:01]} 5. Nf3 {[%clk 0:02:56]}  Bg4 {[%clk 0:03:00]} 6. h3 {[%clk 0:02:56]}  Bh5 {[%clk 0:03:01]} 7. exd6 {[%clk 0:02:55]}  cxd6 {[%clk 0:03:01]} 8. Be2 {[%clk 0:02:55]}  e6 {[%clk 0:03:01]} 9. O-O {[%clk 0:02:55]}  Be7 {[%clk 0:03:02]} 10. a4 {[%clk 0:02:53]}  a5 {[%clk 0:03:02]} 11. Nd2 {[%clk 0:02:45]}  Bg6 {[%clk 0:03:01]} 12. Nb3 {[%clk 0:02:44]}  O-O {[%clk 0:02:56]} 13. d5 {[%clk 0:02:43]}  e5 {[%clk 0:02:55]} 14. Be3 {[%clk 0:02:44]}  N8d7 {[%clk 0:02:55]} 15. Qd2 {[%clk 0:02:40]}  f5 {[%clk 0:02:51]} 16. f4 {[%clk 0:02:40]}  Bf6 {[%clk 0:02:27]} 17. Nb5 {[%clk 0:02:32]}  exf4 {[%clk 0:02:15]} 18. Bxf4 {[%clk 0:02:32]}  Ne5 {[%clk 0:02:16]} 19. Nxa5 {[%clk 0:02:29]}  Nxd5 {[%clk 0:01:50]} 20. Qxd5+ {[%clk 0:02:24]}  Bf7 {[%clk 0:01:50]} 21. Qxd6 {[%clk 0:02:21]}  Qxa5 {[%clk 0:01:25]} 22. Bxe5 {[%clk 0:02:17]}  Bxe5 {[%clk 0:01:17]} 23. Qxe5 {[%clk 0:02:17]}  Rae8 {[%clk 0:01:16]} 24. Qc3 {[%clk 0:02:13]}  Qb6+ {[%clk 0:01:13]} 25. Qd4 {[%clk 0:02:14]}  Qg6 {[%clk 0:00:56]} 26. Bd3 {[%clk 0:02:11]}  Be6 {[%clk 0:00:40]} 27. Rae1 {[%clk 0:02:07]}  Rd8 {[%clk 0:00:39]} 28. Qb6 {[%clk 0:02:01]}  Bd5 {[%clk 0:00:31]} 29. Qxg6 {[%clk 0:02:00]}  hxg6 {[%clk 0:00:31]} 30. Nc7 {[%clk 0:02:01]}  Bc6 {[%clk 0:00:29]} 31. Ne6 {[%clk 0:02:01]} 1-0


[Site "https://www.chess.com"]

[Event "Titled Tuesday Blitz June 13 Late 2023"]
[White "HamedWafa4"]
[Black "Deac, Bogdan-Daniel"]
[BlackFideId "1226380"]
[WhiteElo "2512"]
[BlackElo "2644"]
[Result "0-1"]
[Round "1"]
[TimeControl "180+2"]
[Date "2023.06.13"]
[WhiteClock "0:01:16"]
[BlackClock "0:01:10"]
[Board "13"]

1. e4 {[%clk 0:03:00]}  Nf6 {[%clk 0:02:58]} 2. Nc3 {[%clk 0:02:53]}  d5 {[%clk 0:02:57]} 3. e5 {[%clk 0:02:52]}  Nfd7 {[%clk 0:02:56]} 4. Nxd5 {[%clk 0:02:51]}  Nxe5 {[%clk 0:02:55]} 5. Ne3 {[%clk 0:02:51]}  c5 {[%clk 0:02:52]} 6. Nf3 {[%clk 0:02:51]}  Nxf3+ {[%clk 0:02:39]} 7. Qxf3 {[%clk 0:02:50]}  Nc6 {[%clk 0:02:40]} 8. Bc4 {[%clk 0:02:43]}  e6 {[%clk 0:02:35]} 9. O-O {[%clk 0:02:41]}  Be7 {[%clk 0:02:34]} 10. d3 {[%clk 0:02:37]}  O-O {[%clk 0:02:33]} 11. Qe2 {[%clk 0:02:36]}  b5 {[%clk 0:02:19]} 12. Bb3 {[%clk 0:02:32]}  Nd4 {[%clk 0:02:15]} 13. Qd1 {[%clk 0:02:29]}  a5 {[%clk 0:02:12]} 14. c3 {[%clk 0:02:27]}  Nxb3 {[%clk 0:02:12]} 15. axb3 {[%clk 0:02:28]}  Bb7 {[%clk 0:02:12]} 16. Qe2 {[%clk 0:02:19]}  Qd7 {[%clk 0:02:08]} 17. Rd1 {[%clk 0:02:18]}  Rfd8 {[%clk 0:02:00]} 18. h3 {[%clk 0:02:08]}  f5 {[%clk 0:01:55]} 19. d4 {[%clk 0:02:07]}  cxd4 {[%clk 0:01:54]} 20. Rxd4 {[%clk 0:02:08]}  Qc6 {[%clk 0:01:53]} 21. Rxd8+ {[%clk 0:02:08]}  Bxd8 {[%clk 0:01:53]} 22. c4 {[%clk 0:01:58]}  f4 {[%clk 0:01:43]} 23. cxb5 {[%clk 0:01:56]}  Qe4 {[%clk 0:01:43]} 24. f3 {[%clk 0:01:55]}  Qe5 {[%clk 0:01:36]} 25. b4 {[%clk 0:01:38]}  a4 {[%clk 0:01:19]} 26. Qd3 {[%clk 0:01:16]}  Bb6 {[%clk 0:01:10]} 0-1


[Site "https://www.chess.com"]

[Event "Titled Tuesday Blitz June 13 Late 2023"]
[White "Korobov, Anton"]
[Black "Peycheva, Gergana"]
[WhiteFideId "14105730"]
[BlackFideId "2916711"]
[WhiteElo "2638"]
[BlackElo "2216"]
[Result "1-0"]
[Round "1"]
[TimeControl "180+2"]
[Date "2023.06.13"]
[WhiteClock "0:02:36"]
[BlackClock "0:00:03"]
[Board "14"]

1. d4 {[%clk 0:03:00]}  d5 {[%clk 0:02:58]} 2. c4 {[%clk 0:03:00]}  dxc4 {[%clk 0:02:58]} 3. e3 {[%clk 0:03:00]}  Nf6 {[%clk 0:02:35]} 4. Bxc4 {[%clk 0:02:59]}  e6 {[%clk 0:02:33]} 5. Nf3 {[%clk 0:02:59]}  c5 {[%clk 0:02:08]} 6. O-O {[%clk 0:02:59]}  Nc6 {[%clk 0:02:03]} 7. Qe2 {[%clk 0:02:56]}  cxd4 {[%clk 0:02:00]} 8. Rd1 {[%clk 0:02:56]}  a6 {[%clk 0:01:32]} 9. exd4 {[%clk 0:02:53]}  Be7 {[%clk 0:01:31]} 10. Nc3 {[%clk 0:02:52]}  O-O {[%clk 0:01:31]} 11. d5 {[%clk 0:02:52]}  exd5 {[%clk 0:01:22]} 12. Nxd5 {[%clk 0:02:53]}  Nxd5 {[%clk 0:01:20]} 13. Bxd5 {[%clk 0:02:53]}  Qc7 {[%clk 0:01:19]} 14. Bg5 {[%clk 0:02:53]}  Bg4 {[%clk 0:00:52]} 15. Bxe7 {[%clk 0:02:45]}  Qxe7 {[%clk 0:00:37]} 16. Qxe7 {[%clk 0:02:44]}  Nxe7 {[%clk 0:00:38]} 17. Bxb7 {[%clk 0:02:44]}  Rab8 {[%clk 0:00:38]} 18. Bxa6 {[%clk 0:02:44]}  Rxb2 {[%clk 0:00:35]} 19. a4 {[%clk 0:02:45]}  Nc6 {[%clk 0:00:30]} 20. Bb5 {[%clk 0:02:43]}  Na5 {[%clk 0:00:29]} 21. h3 {[%clk 0:02:42]}  Bxf3 {[%clk 0:00:27]} 22. gxf3 {[%clk 0:02:43]}  g6 {[%clk 0:00:27]} 23. Rac1 {[%clk 0:02:43]}  Rb8 {[%clk 0:00:19]} 24. Rc7 {[%clk 0:02:42]}  Rb6 {[%clk 0:00:18]} 25. Rdd7 {[%clk 0:02:38]}  Rf6 {[%clk 0:00:18]} 26. Kg2 {[%clk 0:02:39]}  Nb3 {[%clk 0:00:12]} 27. Bc4 {[%clk 0:02:38]}  Nd2 {[%clk 0:00:09]} 28. Bxf7+ {[%clk 0:02:38]}  Kg7 {[%clk 0:00:08]} 29. Bd5+ {[%clk 0:02:36]}  Kh6 {[%clk 0:00:03]} 30. h4 {[%clk 0:02:36]} 1-0


[Site "https://www.chess.com"]

[Event "Titled Tuesday Blitz June 13 Late 2023"]
[White "Moussard, Jules"]
[Black "Richter, Paul"]
[WhiteFideId "642908"]
[BlackFideId "2046350"]
[WhiteElo "2610"]
[BlackElo "2509"]
[Result "1/2-1/2"]
[Round "1"]
[TimeControl "180+2"]
[Date "2023.06.13"]
[WhiteClock "0:00:05"]
[BlackClock "0:00:08"]
[Board "16"]

1. Nf3 {[%clk 0:02:55]}  Nf6 {[%clk 0:02:59]} 2. b3 {[%clk 0:02:55]}  g6 {[%clk 0:03:00]} 3. Bb2 {[%clk 0:02:56]}  Bg7 {[%clk 0:03:00]} 4. g3 {[%clk 0:02:56]}  O-O {[%clk 0:03:01]} 5. Bg2 {[%clk 0:02:56]}  d6 {[%clk 0:03:01]} 6. d4 {[%clk 0:02:57]}  Nbd7 {[%clk 0:03:01]} 7. O-O {[%clk 0:02:57]}  Re8 {[%clk 0:03:02]} 8. c4 {[%clk 0:02:41]}  c6 {[%clk 0:02:59]} 9. Nc3 {[%clk 0:02:38]}  e5 {[%clk 0:02:58]} 10. e4 {[%clk 0:02:35]}  Qc7 {[%clk 0:02:55]} 11. Re1 {[%clk 0:02:34]}  exd4 {[%clk 0:02:50]} 12. Nxd4 {[%clk 0:02:34]}  a5 {[%clk 0:02:51]} 13. Rc1 {[%clk 0:02:20]}  Nc5 {[%clk 0:02:51]} 14. h3 {[%clk 0:02:18]}  Bd7 {[%clk 0:02:49]} 15. Qd2 {[%clk 0:01:55]}  Rad8 {[%clk 0:02:48]} 16. Rcd1 {[%clk 0:01:54]}  Bc8 {[%clk 0:02:48]} 17. Kh2 {[%clk 0:01:48]}  h5 {[%clk 0:02:48]} 18. f4 {[%clk 0:01:44]}  Re7 {[%clk 0:02:32]} 19. Ba3 {[%clk 0:01:32]}  Ree8 {[%clk 0:01:54]} 20. Qf2 {[%clk 0:01:26]}  Ne6 {[%clk 0:01:49]} 21. Ndb5 {[%clk 0:01:19]}  cxb5 {[%clk 0:01:45]} 22. Nxb5 {[%clk 0:01:20]}  Qb8 {[%clk 0:01:16]} 23. Nxd6 {[%clk 0:01:20]}  Rf8 {[%clk 0:01:09]} 24. e5 {[%clk 0:01:19]}  Ne8 {[%clk 0:01:05]} 25. Nxc8 {[%clk 0:01:17]}  Qxc8 {[%clk 0:01:04]} 26. h4 {[%clk 0:01:16]}  Qc7 {[%clk 0:00:41]} 27. Rxd8 {[%clk 0:01:12]}  Nxd8 {[%clk 0:00:40]} 28. Rd1 {[%clk 0:01:10]}  Nc6 {[%clk 0:00:35]} 29. Qd2 {[%clk 0:01:01]}  Nb4 {[%clk 0:00:32]} 30. Bxb4 {[%clk 0:00:59]}  axb4 {[%clk 0:00:33]} 31. Qxb4 {[%clk 0:01:00]}  b6 {[%clk 0:00:30]} 32. Qb5 {[%clk 0:00:58]}  Qa7 {[%clk 0:00:26]} 33. a4 {[%clk 0:00:57]}  Nc7 {[%clk 0:00:19]} 34. Qc6 {[%clk 0:00:57]}  Ne6 {[%clk 0:00:18]} 35. Bh3 {[%clk 0:00:46]}  Nc5 {[%clk 0:00:16]} 36. Qf3 {[%clk 0:00:37]}  Qa5 {[%clk 0:00:15]} 37. Rd6 {[%clk 0:00:21]}  Qb4 {[%clk 0:00:15]} 38. f5 {[%clk 0:00:18]}  Qxb3 {[%clk 0:00:14]} 39. Qxb3 {[%clk 0:00:17]}  Nxb3 {[%clk 0:00:15]} 40. f6 {[%clk 0:00:13]}  Bh6 {[%clk 0:00:15]} 41. Rxb6 {[%clk 0:00:13]}  Nd4 {[%clk 0:00:13]} 42. Bg2 {[%clk 0:00:09]}  Rc8 {[%clk 0:00:11]} 43. a5 {[%clk 0:00:08]}  Rxc4 {[%clk 0:00:12]} 44. Rb8+ {[%clk 0:00:08]}  Kh7 {[%clk 0:00:12]} 45. Rb7 {[%clk 0:00:09]}  Rc2 {[%clk 0:00:11]} 46. Rxf7+ {[%clk 0:00:08]}  Kg8 {[%clk 0:00:11]} 47. Rd7 {[%clk 0:00:05]}  Nf3+ {[%clk 0:00:11]} 48. Kh3 {[%clk 0:00:05]}  Ng1+ {[%clk 0:00:12]} 49. Kh2 {[%clk 0:00:06]}  Nf3+ {[%clk 0:00:13]} 50. Kh1 {[%clk 0:00:06]}  Rc1+ {[%clk 0:00:12]} 51. Bf1 {[%clk 0:00:06]}  Nxe5 {[%clk 0:00:11]} 52. Rd8+ {[%clk 0:00:05]}  Kf7 {[%clk 0:00:10]} 53. Kg2 {[%clk 0:00:05]}  Rc2+ {[%clk 0:00:10]} 54. Kh3 {[%clk 0:00:04]}  Be3 {[%clk 0:00:09]} 55. Bg2 {[%clk 0:00:02]}  Ng4 {[%clk 0:00:06]} 56. Rd7+ {[%clk 0:00:02]}  Kxf6 {[%clk 0:00:06]} 57. Rd6+ {[%clk 0:00:03]}  Kg7 {[%clk 0:00:06]} 58. Rxg6+ {[%clk 0:00:03]}  Kxg6 {[%clk 0:00:06]} 59. Be4+ {[%clk 0:00:03]}  Kh6 {[%clk 0:00:05]} 60. Bxc2 {[%clk 0:00:04]}  Ba7 {[%clk 0:00:04]} 61. a6 {[%clk 0:00:05]}  Ne3 {[%clk 0:00:05]} 62. Be4 {[%clk 0:00:04]}  Ng4 {[%clk 0:00:05]} 63. Kg2 {[%clk 0:00:04]}  Kg7 {[%clk 0:00:05]} 64. Kf3 {[%clk 0:00:04]}  Kf6 {[%clk 0:00:05]} 65. Bb7 {[%clk 0:00:03]}  Ne5+ {[%clk 0:00:06]} 66. Ke4 {[%clk 0:00:03]}  Bb8 {[%clk 0:00:06]} 67. Kf4 {[%clk 0:00:02]}  Ng6+ {[%clk 0:00:04]} 68. Kf3 {[%clk 0:00:03]}  Ne7 {[%clk 0:00:05]} 69. Kg2 {[%clk 0:00:03]}  Nf5 {[%clk 0:00:05]} 70. Bf3 {[%clk 0:00:04]}  Kg6 {[%clk 0:00:04]} 71. Be4 {[%clk 0:00:04]}  Kf6 {[%clk 0:00:05]} 72. Bf3 {[%clk 0:00:02]}  Kg6 {[%clk 0:00:05]} 73. Kh3 {[%clk 0:00:03]}  Kh6 {[%clk 0:00:04]} 74. g4 {[%clk 0:00:03]}  hxg4+ {[%clk 0:00:05]} 75. Kxg4 {[%clk 0:00:04]}  Nd4 {[%clk 0:00:05]} 76. Be4 {[%clk 0:00:04]}  Ba7 {[%clk 0:00:05]} 77. Kf4 {[%clk 0:00:04]}  Ne6+ {[%clk 0:00:06]} 78. Ke5 {[%clk 0:00:05]}  Ng7 {[%clk 0:00:06]} 79. Kd6 {[%clk 0:00:04]}  Kh5 {[%clk 0:00:07]} 80. Kc7 {[%clk 0:00:03]}  Kxh4 {[%clk 0:00:07]} 81. Kb7 {[%clk 0:00:04]}  Bd4 {[%clk 0:00:07]} 82. a7 {[%clk 0:00:05]}  Bxa7 {[%clk 0:00:08]} 83. Kxa7 {[%clk 0:00:05]} 1/2-1/2


[Site "https://www.chess.com"]